bitfinex-derivatives/quotes_SOLF0:USTF0_20260108
["timestamp","ask_amount","ask_price","bid_price","bid_amount"]
[1767914561125,85.22,138.84,138.73,0.31800122]
[1767914561324,6.4896,138.81,138.74,0.31800122]
[1767914562527,6.4896,138.81,138.74,6.81070122]
[1767914565028,6.4896,138.81,138.75,0.31800122]
[1767914566525,6.4889,138.83,138.75,6.81010122]
[1767914567827,6.489,138.82,138.75,6.81010122]
[1767914568032,85.22,138.84,138.75,6.4921]
[1767914568833,6.4895,138.81,138.74,0.31800122]
[1767914570133,6.4895,138.81,138.74,6.81070122]
[1767914570434,103.71307515,138.83,138.72,0.31800122]
[1767914571628,6.4904,138.79,138.72,6.81170122]
[1767914577241,6.4909,138.78,138.72,6.81170122]
[1767914583640,6.4909,138.78,138.73,0.31829484]
[1767914593452,6.4914,138.77,138.73,0.31829484]
[1767914593756,6.4914,138.77,138.71,6.79152553]
[1767914598761,6.4914,138.77,138.72,0.29782553]
[1767914602256,6.4908,138.79,138.72,6.79142553]
[1767914628094,8.2651737,138.8,138.73,6.79574383]
[1767914628389,8.2651737,138.8,138.74,0.30264383]
[1767914635196,6.4904,138.79,138.74,0.30264383]
[1767914636284,1.7752737,138.78,138.7,16.16845262]
[1767914636488,1.7752737,138.78,138.7,7.30264383]
[1767914637389,1.7752737,138.78,138.71,0.30264383]
[1767914637591,6.4919,138.76,138.71,0.30264383]
[1767914639896,1.7752737,138.78,138.71,0.30264383]
[1767914640393,6.4918,138.77,138.71,0.30264383]
[1767914641503,6.4919,138.76,138.71,0.30264383]
[1767914642295,8.2664737,138.78,138.73,0.30264383]
[1767914642495,1.7752737,138.8,138.73,0.30264383]
[1767914642896,1.7752737,138.81,138.73,0.30264383]
[1767914643703,6.4899,138.8,138.74,0.3120182]
[1767914645305,6.4899,138.8,138.74,6.8047182]
[1767914646405,1.7752737,138.84,138.75,0.31931341]
[1767914647292,6.4879,138.85,138.78,6.4908]
[1767914647497,1.7752737,138.84,138.78,6.4908]
[1767914647696,1.7752737,138.84,138.78,6.81011341]
[1767914649606,1.7752737,138.84,138.78,0.31931341]
[1767914656310,8.2631737,138.85,138.78,6.81011341]
[1767914658214,1.7752737,138.83,138.76,0.31931341]
[1767914658614,187.36165405,138.87,138.76,0.31931341]
[1767914658816,8.2639737,138.83,138.76,0.31931341]
[1767914664110,8.2639737,138.83,138.76,6.81111341]
[1767914667319,6.4887,138.83,138.76,6.81111341]
[1767914667521,1.7752737,138.82,138.76,6.81111341]
[1767914669519,8.2643737,138.82,138.76,6.81111341]
[1767914670524,6.4891,138.82,138.76,6.81111341]
[1767914675823,6.4896,138.81,138.76,0.31931341]
[1767914676022,6.4896,138.81,138.75,6.4922]
[1767914676922,6.4896,138.81,138.75,6.80025914]
[1767914677320,6.4904,138.79,138.72,6.4932]
[1767914677519,2.77287624,138.78,138.7,0.30805914]
[1767914677920,6.4914,138.77,138.7,6.80215914]
[1767914678723,6.4914,138.77,138.71,6.4941]
[1767914683341,6.4914,138.77,138.7,6.80265914]
[1767914683740,6.4918,138.76,138.7,0.30805914]
[1767914683939,100.9775,138.77,138.66,7.30805914]
[1767914684243,100.9775,138.77,138.66,0.30805914]
[1767914685532,6.493,138.74,138.66,6.80455914]
[1767914687743,6.4934,138.73,138.66,0.30805914]
[1767914689933,6.4938,138.72,138.66,0.30805914]
[1767914691543,6.4938,138.72,138.63,7.0]
[1767914691544,2.77287624,138.72,138.64,0.30805914]
[1767914692642,6.4948,138.7,138.64,0.30805914]
[1767914693229,6.4952,138.69,138.62,0.30805914]
[1767914694132,2.77287624,138.72,138.62,0.30805914]
[1767914694338,2.77287624,138.72,138.63,0.30805914]
[1767914695040,6.4946,138.7,138.63,0.30805914]
[1767914695645,6.4952,138.69,138.63,0.30805914]
[1767914698346,6.4952,138.69,138.61,6.80645914]
[1767914699647,6.4952,138.69,138.62,0.30805914]
[1767914702032,6.4956,138.68,138.61,6.4984]
[1767914702236,88.01287624,138.69,138.6,0.30805914]
[1767914703741,6.4961,138.67,138.6,0.30805914]
[1767914706240,6.4965,138.66,138.6,0.30805914]
[1767914706651,88.01287624,138.69,138.57,19.97199225]
[1767914706652,101.0433,138.68,138.57,19.80009414]
[1767914706851,2.77287624,138.66,138.57,19.80009414]
[1767914707644,6.4975,138.64,138.57,19.80009414]
[1767914710153,6.498,138.63,138.57,13.29979414]
[1767914710359,103.83337624,138.66,138.57,13.29979414]
[1767914711153,101.066,138.65,138.57,13.29979414]
[1767914711349,85.26,138.64,138.57,12.97199225]
[1767914712147,6.4988,138.61,138.57,12.97199225]
[1767914714655,6.4993,138.6,138.57,12.97199225]
[1767914715056,186.3348,138.64,138.52,7.0]
[1767914715057,101.0872,138.62,138.52,7.0]
[1767914715252,6.4999,138.59,138.51,7.0]
[1767914715650,6.4999,138.59,138.56,0.0474475]
[1767914716258,6.55477553,138.59,138.51,7.0]
[1767914716562,0.05487553,138.59,138.51,7.0]
[1767914717065,0.05487553,138.59,138.53,0.32780189]
[1767914718563,0.05487553,138.59,138.54,0.32780189]
[1767914721860,0.05487553,138.59,138.55,0.32780189]
[1767914722061,6.4979,138.63,138.55,0.3738503]
[1767914722859,91.7574,138.64,138.57,0.32780189]
[1767914723654,91.7574,138.64,138.59,0.04782636]
[1767914724364,85.26,138.64,138.59,0.04782636]
[1767914727872,85.26,138.64,138.59,0.37562825]
[1767914728370,91.7958,138.68,138.6,6.82690189]
[1767914729174,91.7958,138.68,138.63,0.04622959]
[1767914730468,1.77857099,138.67,138.63,0.04622959]
[1767914732471,8.27467099,138.67,138.6,6.82690189]
[1767914735182,1.77857099,138.65,138.59,6.4997]
[1767914737291,8.27557099,138.65,138.59,6.4997]
[1767914737590,8.27557099,138.65,138.58,6.82385637]
[1767914741493,8.27557099,138.65,138.59,0.32365637]
[1767914744896,6.497,138.65,138.59,0.32365637]
[1767914745100,1.77857099,138.64,138.59,0.32365637]
[1767914748691,1.77857099,138.64,138.6,0.32365637]
[1767914748896,8.27507099,138.66,138.6,0.32365637]
[1767914749989,8.27507099,138.66,138.59,6.4997]
[1767914752006,6.497,138.65,138.59,6.4997]
[1767914752198,1.77857099,138.64,138.59,6.4997]
[1767914755301,1.77857099,138.64,138.58,0.32365637]
[1767914756702,8.27617099,138.64,138.58,0.32365637]
[1767914757500,1.77857099,138.62,138.56,0.32365637]
[1767914758098,6.4979,138.63,138.56,0.32365637]
[1767914758299,1.77857099,138.62,138.56,0.32365637]
[1767914759009,8.27697099,138.62,138.56,0.32365637]
[1767914761003,8.27647099,138.64,138.57,0.32365637]
[1767914761808,6.4979,138.64,138.57,0.32365637]
[1767914762007,8.27517099,138.66,138.59,6.82335637]
[1767914763102,8.27517099,138.66,138.59,0.32365637]
[1767914763103,6.497,138.65,138.59,0.32365637]
[1767914764108,6.4974,138.64,138.59,0.32365637]
[1767914768312,6.497,138.65,138.59,0.32365637]
[1767914771414,1.77857099,138.66,138.6,0.31646408]
[1767914772820,1.77857099,138.66,138.6,6.81566408]
[1767914773620,8.27487099,138.67,138.6,6.81566408]
[1767914774018,87.07857099,138.68,138.61,0.31646408]
[1767914774220,1.77857099,138.62,138.55,8.86580879]
[1767914774416,1.77857099,138.6,138.54,0.31646408]
[1767914774819,5.26661752,138.59,138.54,0.31646408]
[1767914775020,1.77857099,138.6,138.54,0.31646408]
[1767914775322,5.26661752,138.59,138.54,0.31646408]
[1767914775517,1.77857099,138.6,138.54,0.31646408]
[1767914775723,5.26471441,138.59,138.54,6.81856408]
[1767914775912,5.26471441,138.58,138.54,6.81856408]
[1767914776115,1.77857099,138.6,138.54,6.81856408]
[1767914785924,6.4979,138.64,138.56,0.31646408]
[1767914786131,1.77857099,138.62,138.56,0.31646408]
[1767914788124,5.47591224,138.61,138.56,0.31646408]
[1767914788327,5.47591224,138.6,138.56,0.31646408]
[1767914788530,1.77857099,138.62,138.56,0.31646408]
[1767914788730,5.47595911,138.61,138.56,0.31646408]
[1767914789035,5.47595911,138.6,138.56,0.31646408]
[1767914789234,1.77857099,138.62,138.56,0.31646408]
[1767914789435,5.47590669,138.61,138.56,0.31646408]
[1767914789728,5.47590669,138.6,138.56,0.31646408]
[1767914789933,1.77857099,138.62,138.56,6.81756408]
[1767914790131,5.47593265,138.61,138.56,6.81756408]
[1767914790327,1.77857099,138.62,138.56,6.81756408]
[1767914790328,5.47593265,138.6,138.56,6.81756408]
[1767914790535,1.77857099,138.62,138.56,6.81756408]
[1767914790832,5.47609503,138.61,138.56,6.81756408]
[1767914791032,5.47609503,138.6,138.56,6.81756408]
[1767914791335,1.77857099,138.62,138.56,6.81756408]
[1767914791536,5.47627797,138.61,138.56,6.81756408]
[1767914791735,5.47627797,138.6,138.56,6.81756408]
[1767914791937,1.77857099,138.62,138.56,6.81756408]
[1767914792132,5.47627797,138.61,138.56,6.81756408]
[1767914792332,5.47627797,138.6,138.56,6.81756408]
[1767914792534,6.4979,138.63,138.56,6.81756408]
[1767914792733,8.207e-05,138.62,138.58,0.32624914]
[1767914792935,85.3,138.68,138.58,0.32624914]
[1767914793737,85.3,138.68,138.61,6.4988]
[1767914794033,85.3,138.68,138.61,6.82504914]
[1767914796133,85.3,138.68,138.62,0.32624914]
[1767914796334,85.3,138.68,138.59,0.32624914]
[1767914797530,6.4961,138.67,138.6,6.4993]
[1767914797835,85.3,138.68,138.6,6.82554914]
[1767914800242,91.7956,138.68,138.6,6.82554914]
[1767914801233,85.3,138.68,138.58,6.82614914]
[1767914801434,85.3,138.68,138.58,0.32624914]
[1767914801937,6.4967,138.66,138.58,0.32624914]
[1767914803742,6.4967,138.66,138.58,6.82644914]
[1767914803938,85.3,138.68,138.58,0.32624914]
[1767914805037,2.78074149,138.69,138.58,0.32624914]
[1767914805038,6.4946,138.71,138.62,0.32624914]
[1767914806040,6.4946,138.71,138.63,6.4979]
[1767914809442,6.4946,138.71,138.64,0.32624914]
[1767914810641,85.28,138.72,138.63,6.4979]
[1767914810842,85.28,138.72,138.63,6.82414914]
[1767914811043,85.28,138.72,138.64,6.4974]
[1767914811241,85.28,138.72,138.64,0.32624914]
[1767914811444,100.9656,138.79,138.66,0.32624914]
[1767914811445,85.28,138.77,138.66,0.32624914]
[1767914812246,6.4926,138.75,138.67,0.32624914]
[1767914814550,6.4926,138.75,138.67,6.82214914]
[1767914814949,6.4926,138.75,138.68,0.32624914]
[1767914816644,100.9849,138.76,138.66,0.32624914]
[1767914817542,6.4933,138.73,138.66,0.32624914]
[1767914821346,6.4926,138.75,138.66,6.82264914]
[1767914821748,6.4926,138.75,138.67,0.32624914]
[1767914822050,6.4929,138.74,138.67,0.32624914]
[1767914824557,6.4929,138.74,138.67,6.82214914]
[1767914828150,6.4929,138.74,138.68,6.8167417]
[1767914828648,6.4922,138.76,138.68,0.3212417]
[1767914829560,6.4922,138.76,138.69,6.8161417]
[1767914829855,6.4923,138.75,138.69,0.3212417]
[1767914830447,6.4923,138.75,138.66,0.3212417]
[1767914831561,6.4923,138.75,138.68,6.4955]
[1767914833862,6.4923,138.75,138.68,6.8167417]
[1767914834763,100.9854,138.76,138.68,0.3212417]
[1767914835056,103.78254149,138.74,138.65,7.0]
[1767914835250,103.78254149,138.74,138.6,208.0167]
[1767914835251,103.78254149,138.74,138.6,215.0167]
[1767914836565,6.4946,138.71,138.64,6.4974]
[1767914836866,6.4946,138.71,138.64,6.8186417]
[1767914837962,91.7339,138.72,138.62,0.3212417]
[1767914838265,100.9854,138.76,138.65,0.3212417]
[1767914838266,2.78074149,138.76,138.65,0.3212417]
[1767914839567,6.4926,138.75,138.68,6.4953]
[1767914839753,6.4926,138.75,138.68,6.8165417]
[1767914839960,2.78074149,138.76,138.69,0.3212417]
[1767914840361,9.27254149,138.76,138.69,0.3212417]
[1767914841267,91.7313,138.78,138.7,0.3212417]
[1767914842056,6.4914,138.77,138.7,6.8158417]
[1767914847971,6.4914,138.77,138.7,6.4946]
[1767914852682,85.24,138.78,138.67,0.3212417]
[1767914852683,1.77662781,138.74,138.67,0.3212417]
[1767914854570,1.77662781,138.74,138.69,6.4951]
[1767914854770,8.26842781,138.76,138.69,6.4951]
[1767914855972,6.4923,138.75,138.67,6.8168417]
[1767914857283,6.4928,138.74,138.67,6.8168417]
[1767914857585,8.26942781,138.74,138.67,6.8168417]
[1767914863177,6.4932,138.73,138.67,0.3212417]
[1767914864376,6.4932,138.73,138.64,0.31522506]
[1767914864683,6.4932,138.73,138.66,6.81162506]
[1767914865672,1.77662781,138.74,138.67,6.81082506]
[1767914865878,1.77662781,138.76,138.68,0.31522506]
[1767914867691,8.26842781,138.76,138.69,6.81032506]
[1767914868178,8.26842781,138.76,138.7,0.31522506]
[1767914874392,6.4923,138.75,138.69,6.4951]
[1767914874686,8.26892781,138.75,138.69,6.4951]
[1767914876391,8.26892781,138.75,138.69,6.81032506]
[1767914878988,1.77662781,138.74,138.69,6.81032506]
[1767914884189,1.77662781,138.74,138.7,0.32370847]
[1767914885699,8.26892781,138.75,138.7,0.32370847]
[1767914887296,8.26892781,138.75,138.69,6.4951]
[1767914888097,8.26892781,138.75,138.69,6.81880847]
[1767914892395,8.26892781,138.75,138.69,0.32370847]
[1767914894297,6.4928,138.74,138.69,0.32370847]
[1767914894503,1.77662781,138.71,138.65,6.80581563]
[1767914894702,1.77662781,138.71,138.66,0.30891563]
[1767914896602,8.27082781,138.71,138.66,0.30891563]
[1767914896901,1.77662781,138.71,138.64,0.30891563]
[1767914897707,6.4947,138.7,138.64,0.30891563]
[1767914898506,8.27092781,138.71,138.64,6.80631563]
[1767914898704,8.27092781,138.71,138.65,0.30891563]
[1767914900506,1.77662781,138.71,138.65,6.80581563]
[1767914907008,1.77662781,138.71,138.66,0.30891563]
[1767914909810,1.77662781,138.71,138.66,6.80541563]
[1767914912512,6.4937,138.72,138.66,6.80541563]
[1767914912810,6.4937,138.72,138.67,0.30254273]
[1767914925628,6.4923,138.75,138.69,6.79754273]
[1767914934438,6.4923,138.75,138.69,0.30254273]
[1767914938736,6.4928,138.74,138.68,6.4955]
[1767914939734,6.4928,138.74,138.68,6.79804273]
[1767914949955,6.4923,138.75,138.68,6.79804273]
[1767914954152,1.25500379,138.76,138.65,0.30392624]
[1767914954556,103.75801368,138.77,138.65,0.30392624]
[1767914955657,6.4932,138.73,138.67,6.79952624]
[1767914956662,6.4926,138.75,138.68,6.79942624]
[1767914960866,6.4926,138.75,138.7,0.30392624]
[1767914974562,8.26894841,138.75,138.7,0.30392624]
[1767914975065,6.4928,138.74,138.7,0.30392624]
[1767914977978,1.77634841,138.75,138.7,0.30392624]
[1767914979778,8.26884841,138.75,138.7,0.30392624]
[1767914983385,6.4925,138.75,138.7,0.30392624]
[1767914983578,1.77634841,138.75,138.67,0.32052997]
[1767914984586,6.4932,138.74,138.68,6.4955]
[1767914985082,6.4922,138.76,138.69,0.32052997]
[1767914986282,8.26774841,138.77,138.7,6.81502997]
[1767914990988,8.26774841,138.77,138.71,6.494]
[1767914992301,6.4919,138.76,138.7,0.32052997]
[1767914993299,113.9151,138.83,138.73,0.32052997]
[1767914993500,1.77634841,138.82,138.73,0.32052997]
[1767914993897,1.77634841,138.82,138.71,1.77634841]
[1767914993898,1.77634841,138.78,138.71,0.32052997]
[1767914995708,6.4914,138.77,138.71,6.81462997]
[1767914996100,6.4907,138.79,138.72,6.81412997]
[1767914996300,8.26704841,138.79,138.72,6.81412997]
[1767914999308,6.4907,138.79,138.72,6.81412997]
[1767914999504,8.26704841,138.79,138.72,6.81412997]
[1767914999807,1.77634841,138.8,138.73,6.81362997]
[1767915000514,6.4899,138.8,138.74,6.81322997]
[1767915000912,6.4899,138.8,138.75,0.32052997]
[1767915005920,6.4899,138.8,138.72,0.298751]
[1767915006617,6.4899,138.8,138.73,6.81334244]
[1767915008625,1.77634841,138.79,138.69,0.32014244]
[1767915008832,1.77634841,138.77,138.69,0.32014244]
[1767915010531,8.26784841,138.77,138.71,6.4941]
[1767915012335,8.26874841,138.75,138.7,0.32014244]
[1767915014837,1.77634841,138.73,138.64,8.77634841]
[1767915015130,1.77634841,138.73,138.66,0.32014244]
[1767915016736,8.26964841,138.73,138.66,6.81664244]
[1767915017334,1.77634841,138.73,138.67,6.81614244]
[1767915030238,1.77634841,138.76,138.68,0.32014244]
[1767915030643,1.77634841,138.76,138.69,6.81524244]
[1767915032547,8.26824841,138.76,138.69,6.81524244]
[1767915034648,6.4919,138.76,138.69,6.81524244]
[1767915043155,91.6913,138.77,138.7,6.813765]
[1767915043357,91.6913,138.77,138.71,0.319565]
[1767915043853,6.4922,138.76,138.71,0.319565]
[1767915045850,85.2,138.77,138.71,0.319565]
[1767915046055,2.77567042,138.83,138.71,0.319565]
[1767915047548,6.49,138.8,138.74,6.812065]
[1767915048359,6.49,138.8,138.75,0.319565]
[1767915048546,6.4894,138.82,138.75,0.319565]
[1767915049049,6.4895,138.81,138.75,0.319565]
[1767915057655,6.4895,138.81,138.73,0.319565]
[1767915059563,6.4895,138.81,138.74,0.319565]
[1767915061559,100.9429,138.82,138.72,0.319565]
[1767915062166,6.491,138.78,138.72,0.319565]
[1767915067372,2.77567042,138.82,138.73,0.31734771]
[1767915067573,85.22,138.84,138.73,0.31734771]
[1767915067876,85.22,138.84,138.74,0.31734771]
[1767915068563,6.4886,138.83,138.77,6.80864771]
[1767915069373,85.22,138.84,138.75,0.31734771]
[1767915070678,6.4897,138.81,138.75,0.31734771]
[1767915071372,6.49,138.8,138.75,0.31734771]
[1767915071673,6.49,138.8,138.72,0.31734771]
[1767915072581,9.26517042,138.82,138.74,0.31734771]
[1767915072879,2.77567042,138.82,138.74,0.31734771]
[1767915074585,6.4897,138.81,138.74,6.81004771]
[1767915074775,2.77567042,138.79,138.68,0.31734771]
[1767915075082,87.97567042,138.79,138.68,0.31734771]
[1767915075273,6.4918,138.76,138.69,6.4947]
[1767915075475,87.97567042,138.79,138.68,0.31734771]
[1767915075673,2.77567042,138.76,138.68,0.31734771]
[1767915075876,6.4928,138.74,138.68,0.31734771]
[1767915076887,87.97567042,138.79,138.69,0.31734771]
[1767915077072,188.94197042,138.79,138.69,0.31734771]
[1767915077380,6.492,138.76,138.69,6.81244771]
[1767915079589,6.4923,138.75,138.67,6.81294771]
[1767915080184,6.4923,138.75,138.68,6.4955]
[1767915081192,2.77567042,138.76,138.67,0.31734771]
[1767915081193,6.4929,138.74,138.67,0.31734771]
[1767915083496,6.4929,138.74,138.67,6.81334771]
[1767915087499,6.4929,138.74,138.68,0.31734771]
[1767915092492,6.4923,138.75,138.68,6.81284771]
[1767915094900,188.94197042,138.79,138.69,6.495]
[1767915095307,188.94197042,138.79,138.69,6.81297441]
[1767915096505,1.77647393,138.75,138.69,6.81297441]
[1767915097603,1.77647393,138.75,138.69,6.495]
[1767915098104,8.26877393,138.75,138.69,6.495]
[1767915103607,6.4929,138.74,138.67,6.81357441]
[1767915105708,1.77647393,138.75,138.68,0.31797441]
[1767915107595,8.26897393,138.75,138.69,6.495]
[1767915120125,8.26897393,138.75,138.69,6.81297441]
[1767915124630,1.77647393,138.75,138.67,6.80096013]
[1767915125526,6.4933,138.73,138.67,6.80096013]
[1767915130835,1.77647393,138.75,138.67,0.30536013]
[1767915131038,1.77647393,138.73,138.67,0.30536013]
[1767915132537,6.4943,138.71,138.67,0.30536013]
[1767915137434,6.4943,138.71,138.65,6.81076982]
[1767915141746,6.4947,138.7,138.63,7.31406982]
[1767915141949,6.4947,138.7,138.63,0.31406982]
[1767915142246,6.4947,138.7,138.64,6.81136982]
[1767915144044,6.4953,138.69,138.64,0.31406982]
[1767915144247,1.77647393,138.71,138.61,0.31406982]
[1767915145148,6.4956,138.68,138.63,0.31406982]
[1767915145347,1.77647393,138.71,138.63,0.31406982]
[1767915146648,6.4951,138.69,138.63,0.31406982]
[1767915147039,1.77647393,138.69,138.63,0.31406982]
[1767915147642,6.4957,138.68,138.63,0.31406982]
[1767915147846,85.24,138.73,138.63,0.31406982]
[1767915148043,1.77647393,138.71,138.63,0.31406982]
[1767915149544,6.495,138.7,138.64,6.4971]
[1767915149846,6.495,138.7,138.64,6.81116982]
[1767915150447,6.495,138.7,138.65,0.31406982]
[1767915152449,6.4941,138.72,138.66,0.31625809]
[1767915155249,91.7332,138.73,138.67,0.31625809]
[1767915156242,6.4928,138.74,138.68,0.31625809]
[1767915157553,6.4928,138.74,138.68,6.81165809]
[1767915158851,6.4928,138.74,138.68,0.31625809]
[1767915159746,6.4928,138.74,138.67,6.81225809]
[1767915169258,6.4932,138.73,138.67,6.81225809]
[1767915171165,6.4938,138.72,138.67,0.31625809]
[1767915172868,5.20450857,138.71,138.67,0.31625809]
[1767915173065,6.4938,138.72,138.67,0.31625809]
[1767915173364,5.20469285,138.71,138.67,0.31625809]
[1767915173661,6.4938,138.72,138.67,0.31625809]
[1767915173862,5.20469285,138.71,138.67,0.31625809]
[1767915174055,6.4938,138.72,138.67,0.31625809]
[1767915174256,5.20488359,138.71,138.67,0.31625809]
[1767915174459,6.4938,138.72,138.67,0.31625809]
[1767915174656,5.20488359,138.71,138.67,0.31625809]
[1767915174857,6.4938,138.72,138.67,0.31625809]
[1767915175156,5.20488359,138.71,138.67,0.31625809]
[1767915175356,6.4938,138.72,138.67,0.31625809]
[1767915175552,11.69928099,138.71,138.65,6.81315809]
[1767915175761,6.4942,138.71,138.65,6.81315809]
[1767915177569,5.20486202,138.7,138.65,6.81315809]
[1767915177758,6.4942,138.71,138.65,6.81315809]
[1767915178052,5.20486202,138.7,138.65,6.81315809]
[1767915178251,6.4942,138.71,138.65,6.81315809]
[1767915178456,5.20485222,138.7,138.65,6.81315809]
[1767915178656,6.4942,138.71,138.65,6.81315809]
[1767915178853,5.20485222,138.7,138.65,6.81315809]
[1767915179057,6.4942,138.71,138.65,6.81315809]
[1767915179257,5.20484289,138.7,138.65,6.81315809]
[1767915179458,6.4942,138.71,138.65,6.81315809]
[1767915179752,5.20484289,138.7,138.65,6.81315809]
[1767915179956,6.4942,138.71,138.65,6.81315809]
[1767915180156,5.20484289,138.7,138.65,6.81315809]
[1767915180357,6.4942,138.71,138.66,0.31625809]
[1767915189278,6.4954,138.69,138.61,0.31456705]
[1767915189574,6.4954,138.69,138.62,0.31456705]
[1767915189575,5.20708842,138.68,138.62,0.31456705]
[1767915189777,6.4954,138.69,138.62,0.31456705]
[1767915189981,5.20677694,138.68,138.62,0.31456705]
[1767915190182,6.4954,138.69,138.62,0.31456705]
[1767915190376,5.20669365,138.68,138.62,0.31456705]
[1767915190674,6.4954,138.69,138.62,0.31456705]
[1767915190976,11.70228936,138.68,138.59,0.32247913]
[1767915191177,5.20668936,138.67,138.6,6.82147913]
[1767915191475,11.70328936,138.66,138.6,0.32247913]
[1767915191678,5.20668936,138.65,138.6,0.32247913]
[1767915191867,5.20668936,138.64,138.6,0.32247913]
[1767915192070,6.4966,138.66,138.6,0.32247913]
[1767915192275,5.20203867,138.65,138.6,0.32247913]
[1767915192472,5.20203867,138.64,138.6,0.32247913]
[1767915192667,5.20203867,138.64,138.56,101.1269]
[1767915192668,6.4966,138.66,138.59,6.4997]
[1767915192872,5.20203732,138.65,138.56,0.32247913]
[1767915193073,5.20203732,138.64,138.56,0.32247913]
[1767915193274,5.20203732,138.63,138.56,0.32247913]
[1767915193468,85.24,138.65,138.54,0.32247913]
[1767915193674,109.04949317,138.64,138.54,0.32247913]
[1767915193876,5.19788153,138.63,138.5,0.32247913]
[1767915194076,6.4989,138.61,138.53,6.5025]
[1767915194267,6.4989,138.61,138.53,6.82497913]
[1767915194476,6.4989,138.61,138.53,0.32247913]
[1767915195576,6.4989,138.61,138.54,6.502]
[1767915201389,6.4989,138.61,138.53,0.32247913]
[1767915201783,6.4995,138.6,138.53,0.32247913]
[1767915201997,103.85771164,138.63,138.53,0.32247913]
[1767915202887,5.26342151,138.62,138.53,0.32247913]
[1767915203185,103.85771164,138.63,138.53,0.32247913]
[1767915203387,2.77551164,138.6,138.53,0.32247913]
[1767915203575,2.77551164,138.6,138.5,6.82607913]
[1767915203779,85.28,138.59,138.5,6.82607913]
[1767915204787,85.28,138.59,138.5,0.32247913]
[1767915204989,2.77551164,138.57,138.48,6.82707913]
[1767915205180,2.77551164,138.57,138.43,101.2222]
[1767915205181,103.90191164,138.57,138.43,101.2222]
[1767915205486,103.90191164,138.57,138.44,0.32247913]
[1767915206089,6.5027,138.53,138.46,6.82797913]
[1767915207081,6.5033,138.52,138.44,6.82897913]
[1767915208186,94.57801164,138.54,138.46,0.32247913]
[1767915209280,101.1264,138.57,138.48,6.82737913]
[1767915209281,6.5016,138.56,138.48,6.82737913]
[1767915210386,6.5016,138.56,138.49,6.82687913]
[1767915210588,85.32,138.57,138.5,0.32247913]
[1767915210987,85.32,138.57,138.47,101.1918]
[1767915210988,85.32,138.57,138.51,6.82587913]
[1767915213489,0.04678184,138.55,138.51,0.32247913]
[1767915213690,0.04678184,138.55,138.47,0.30320568]
[1767915214092,0.04678184,138.55,138.48,0.30320568]
[1767915214483,85.32,138.57,138.48,0.30320568]
[1767915214890,6.5017,138.55,138.48,6.80810568]
[1767915215090,6.5017,138.55,138.51,0.0461998]
[1767915215292,0.05431631,138.54,138.51,0.0461998]
[1767915223690,6.55651631,138.54,138.48,0.30320568]
[1767915229302,6.5026,138.53,138.48,0.30320568]
[1767915229606,0.05431631,138.54,138.48,0.30320568]
[1767915237000,0.05431631,138.54,138.48,6.80810568]
[1767915239108,5.26104223,138.53,138.48,6.80810568]
[1767915239297,0.05431631,138.54,138.48,6.80810568]
[1767915239505,5.26104223,138.53,138.48,6.80810568]
[1767915239807,0.05431631,138.54,138.48,6.80810568]
[1767915240006,5.26104223,138.53,138.48,6.80810568]
[1767915240206,0.05431631,138.54,138.48,6.80810568]
[1767915240408,5.26189262,138.53,138.48,6.80810568]
[1767915240604,0.05431631,138.54,138.48,6.80810568]
[1767915240804,5.26155148,138.53,138.48,6.80810568]
[1767915241006,0.05431631,138.54,138.48,6.80810568]
[1767915241205,5.26288271,138.53,138.48,6.80810568]
[1767915241406,0.05431631,138.54,138.48,6.80810568]
[1767915241710,5.2631211,138.53,138.48,6.80810568]
[1767915241910,0.05431631,138.54,138.48,6.80810568]
[1767915242111,5.26311259,138.53,138.48,6.80810568]
[1767915242311,0.05431631,138.54,138.48,6.80810568]
[1767915242512,5.2653232,138.53,138.48,6.80810568]
[1767915242704,0.05431631,138.54,138.48,6.80810568]
[1767915242904,5.2653232,138.53,138.48,6.80810568]
[1767915243113,0.05431631,138.54,138.48,6.80810568]
[1767915243412,5.26631062,138.53,138.48,6.80810568]
[1767915243611,0.05431631,138.54,138.48,6.80810568]
[1767915243805,5.26639043,138.53,138.48,6.80810568]
[1767915244002,0.05431631,138.54,138.48,6.80810568]
[1767915244219,5.26778349,138.53,138.48,6.80810568]
[1767915244409,0.05431631,138.54,138.48,6.80810568]
[1767915244606,5.26782457,138.53,138.48,6.80810568]
[1767915244913,0.05431631,138.54,138.48,6.80810568]
[1767915245112,5.26782457,138.53,138.48,6.80810568]
[1767915245316,0.05431631,138.54,138.48,6.80810568]
[1767915245617,5.26991204,138.53,138.5,0.31926762]